fUSD/lending_fUSD_20251029
["ID","MTS","AMOUNT","RATE_DAILY","PERIOD"]
[392607624,1761740194660,151.0,0.0001988,7]
[392607625,1761740227800,-125.48937005,0.00014826,2]
[392607626,1761740227823,-98.71633324,0.0001485,2]
[392607627,1761740230030,-243.83521095,0.0001485,2]
[392607628,1761740231953,-203.35496338,0.0001485,2]
[392607629,1761740288385,-91.25034243,0.0001485,2]
[392607630,1761740288408,-61.30965757,0.00014899,2]
[392607632,1761740376974,151.0,0.0001988,7]
[392607633,1761740408327,-240.57216966,0.00014899,2]
[392607634,1761740409841,-265.95435893,0.00014899,2]
[392607635,1761740414969,-283.16109466,0.00014899,2]
[392607636,1761740418382,-233.081201,0.00014899,2]
[392607638,1761740555976,151.0,0.0001988,7]
[392607639,1761740604536,-177.23117575,0.00014899,2]
[392607640,1761740604560,-5465.77357057,0.000149,2]
[392607641,1761740604587,-3413.65475538,0.000149,2]
[392607642,1761740604610,-393.13758913,0.000149,2]
[392607643,1761740604632,-500.0,0.00014973,2]
[392607644,1761740604655,-555.32509067,0.00014973,2]
[392607645,1761740604677,-151.0,0.00014991,2]
[392607646,1761740604699,-151.0,0.00014991,2]
[392607647,1761740604721,-151.0,0.00014991,2]
[392607648,1761740604742,-151.0,0.00014991,2]
[392607649,1761740604764,-151.0,0.00014991,2]
[392607650,1761740604785,-5103.426817,0.00014993,2]
[392607651,1761740604806,-150.0,0.00014998,2]
[392607652,1761740604828,-284.47302118,0.00014999,2]
[392607653,1761740604853,-605.38701886,0.00014999,2]
[392607654,1761740604878,-460.49793195,0.00014999,2]
[392607655,1761740604902,-224.20570329,0.00014999,2]
[392607656,1761740604929,-152.56,0.00014999,2]
[392607657,1761740604953,-335.46273156,0.00014999,2]
[392607658,1761740605149,-283.16109466,0.00014999,2]
[392607659,1761740605177,-36772.7035,0.00015,2]
[392607660,1761740617179,153.100218,0.0001988,7]
[392607661,1761740663913,-150.0,0.00014999,2]
[392607662,1761740663939,-89250.0,0.00015,2]
[392607663,1761740692870,-453.55,0.0001485,2]
[392607664,1761740699676,713.00614276,0.0002,3]
[392607666,1761740735863,151.0,0.0001988,7]
[392607667,1761740747697,52789.28791765,0.0001995,15]
[392607668,1761740747723,26135.57150399,0.0001995,15]
[392607669,1761740768642,151.0,0.0001988,7]
[392607670,1761740817390,6038.21365819,0.000162,5]
[392607671,1761740823575,1063.88,0.00031507,120]
[392607672,1761740827752,-192.94339843,0.00014775,2]
[392607674,1761740832542,-191.25136897,0.00014775,2]
[392607675,1761740834595,-162.85116113,0.00014775,2]
[392607676,1761740836753,-346.40128441,0.00014775,2]
[392607677,1761740838403,600.0,0.000149,5]
[392607678,1761740838431,-212.73947532,0.00014775,2]
[392607679,1761740840056,-272.87895329,0.00014775,2]
[392607680,1761740844165,-172.89069141,0.00014775,2]
[392607681,1761740847313,-193.79490688,0.00014775,2]
[392607683,1761740891087,412.41624996,0.0001439,2]
[392607684,1761740916148,151.0,0.00019339,7]
[392607685,1761740923506,7830.0496995,0.0001,2]
[392607686,1761740925141,161.50375126,0.00012,2]
[392607689,1761740947784,-165.60028277,0.0001475,2]
[392607690,1761740947808,-7.17330716,0.00014775,2]
[392607691,1761740947832,-13.77931503,0.0001485,2]
[392607692,1761741005090,499.24,0.00017699,14]
[392607693,1761741028908,500.0,0.00030137,120]
[392607694,1761741029422,500.0,0.00030411,120]
[392607695,1761741029927,500.0,0.00030685,120]
[392607717,1761741032384,-300.0,0.00014899,2]
[392607718,1761741032394,-300.0,0.00014899,2]
[392607719,1761741032405,-1200.0,0.00014899,2]
[392607720,1761741032414,-3882.58784,0.000149,2]
[392607721,1761741032441,-1036.60837354,0.000149,2]
[392607722,1761741032450,-169.02543722,0.000149,2]
[392607723,1761741032459,-343.99539055,0.000149,2]
[392607724,1761741032470,-462.31058477,0.00014973,2]
[392607725,1761741032479,-500.0,0.00014973,2]
[392607726,1761741032489,-500.0,0.00014973,2]
[392607727,1761741032509,-500.0,0.00014973,2]
[392607728,1761741032524,-1257.644573,0.00014985,2]
[392607729,1761741032534,-172.02859754,0.0001499,2]
[392607730,1761741032543,-453.55,0.00014999,2]
[392607731,1761741032552,-500.0,0.00014999,2]
[392607732,1761741032561,-438.98387865,0.00014999,2]
[392607733,1761741032571,-87824.81895764,0.00015,2]
[392607753,1761741032836,-302.33639956,0.00015,2]
[392607759,1761741038202,-2713.79881364,0.00015,2]
[392607760,1761741038422,-2103.73383077,0.00015,2]
[392607761,1761741038435,-4377.942471,0.00015,2]
[392607801,1761741040320,-4525.11811655,0.00015,2]
[392607802,1761741040331,-4591.6342395,0.00015,2]
[392607803,1761741040341,-4128.63986883,0.00015,2]
[392607804,1761741040353,-4432.26839026,0.00015,2]
[392607805,1761741040365,-30685.62970599,0.00015,2]
[392607806,1761741040376,-1363.68834929,0.00015,2]
[392607807,1761741040387,-14896.46297549,0.00015,2]
[392607808,1761741040397,-3829.98099585,0.00015,2]
[392607809,1761741040408,-27672.52406878,0.00015,2]
[392607810,1761741040419,-71918.71950265,0.00015,2]
[392607811,1761741040659,-70294.80188395,0.00015,2]
[392607818,1761741041174,-1.6e-07,0.00015,2]
[392607819,1761741041196,-3256.25666275,0.00015,2]
[392607820,1761741041268,-1109.0,0.00015,2]
[392607821,1761741042614,269.64,0.00031506,120]
[392607834,1761741043609,-46.03078496,0.00015,2]
[392607835,1761741043663,-200000.0,0.00015,2]
[392607847,1761741046468,-1022.25634372,0.00015,2]
[392607848,1761741046636,-498.29656768,0.00015,2]
[392607851,1761741064109,364.06,0.00026648,120]
[392607852,1761741069581,199.897304,0.00019756,7]
[392607853,1761741097806,-185.7570653,0.000147,2]
[392607854,1761741100016,-414.36047135,0.000147,2]
[392607855,1761741165590,157.58929139,0.00031506,120]
[392607856,1761741172706,-314.65945662,0.00014626,2]
[392607857,1761741174260,-591.0,0.00014626,2]
[392607858,1761741177010,-300.0,0.00014626,2]
[392607859,1761741279372,-302.1287721,0.000146,2]
[392607860,1761741280344,176.03,9.278e-05,2]
[392607861,1761741280580,176.03,0.00012371,2]
[392607862,1761741281337,-14.69004104,0.000146,2]
[392607863,1761741281360,-246.88880019,0.00014626,2]
[392607864,1761741308926,-27.57951181,0.00014626,2]
[392607865,1761741308955,-23.18946335,0.000147,2]
[392607866,1761741308984,-129.97156636,0.0001485,2]
[392607867,1761741313297,-165.7930362,0.0001485,2]
[392607869,1761741444764,-193.13322744,0.0001485,2]
[392607870,1761741444788,-23.41965105,0.00014874,2]
[392607871,1761741632781,500.0,0.00030137,120]
[392607872,1761741633265,500.5,0.00030411,120]
[392607874,1761741786692,569.56325858,0.0001425,2]
[392607877,1761741953966,-190.9,0.00014502,2]
[392607878,1761741954236,-82.2591911,0.00014799,2]
[392607894,1761742044395,600.0,0.000149,5]
[392607895,1761742086033,200.0,0.00014368,2]
[392607896,1761742086927,-242.96350348,0.00014798,2]
[392607897,1761742088478,-57.03649652,0.00014798,2]
[392607898,1761742088502,-97.34977743,0.00014798,2]
[392607899,1761742090521,-52.65022257,0.00014798,2]
[392607900,1761742090542,-253.55487055,0.00014799,2]
[392607901,1761742093395,-230.23014113,0.00014799,2]
[392607902,1761742095462,-217.27472627,0.00014799,2]
[392607903,1761742097714,-277.02333261,0.00014799,2]
[392607904,1761742099955,-283.14637163,0.00014799,2]
[392607905,1761742101566,-278.11259062,0.00014799,2]
[392607906,1761742103060,-569.07393618,0.00014799,2]
[392607907,1761742118881,-230.73462432,0.00014798,2]
[392607908,1761742120854,-222.86383252,0.00014798,2]
[392607909,1761742123842,-46.40154316,0.00014798,2]
[392607910,1761742123873,-141.21131378,0.00014798,2]
[392607911,1761742126562,-166.66666668,0.00014798,2]
[392607912,1761742127360,666.0,0.00016893,3]
[392607913,1761742129354,-192.12201954,0.00014798,2]
[392607914,1761742129380,-97.76901112,0.00014798,2]
[392607915,1761742132523,-393.45672806,0.00014798,2]
[392607916,1761742138807,3098.39,0.00014309,2]
[392607917,1761742139625,-8.77426082,0.00014798,2]
[392607918,1761742139649,-153.97948743,0.00014798,2]
[392607919,1761742139674,-43.91347226,0.00014798,2]
[392607920,1761742141209,-228.4215338,0.00014798,2]
[392607921,1761742143344,-227.66499394,0.00014798,2]
[392607922,1761742143369,-15.44536645,0.00014798,2]
[392607923,1761742145639,-297.3739501,0.00014798,2]
[392607924,1761742149226,-178.83115339,0.00014798,2]
[392607925,1761742151086,-8.34953006,0.00014798,2]
[392607926,1761742151111,-277.55129927,0.00014798,2]
[392607927,1761742153922,-176.76762604,0.00014798,2]
[392607928,1761742156279,-45.68107469,0.00014798,2]
[392607929,1761742156304,-420.31375021,0.00014798,2]
[392607930,1761742160170,-79.68624979,0.00014798,2]
[392607931,1761742160197,-108.34098146,0.00014798,2]
[392607932,1761742179617,-313.12875029,0.00014798,2]
[392607933,1761742181384,-78.53026825,0.00014798,2]
[392607934,1761742181409,-90.90845871,0.00014798,2]
[392607935,1761742185375,-157.04511741,0.00014798,2]
[392607936,1761742186857,-250.0432859,0.00014798,2]
[392607937,1761742188439,-2.00313798,0.00014798,2]
[392607938,1761742188466,-328.85460642,0.00014798,2]
[392607939,1761742192196,-171.14539358,0.00014798,2]
[392607940,1761742192220,-220.92639014,0.00014798,2]
[392607941,1761742196848,-158.84141481,0.00014798,2]
[392607942,1761742198485,-120.23219505,0.00014798,2]
[392607943,1761742198509,-295.26033778,0.00014798,2]
[392607944,1761742200741,-178.09406547,0.00014798,2]
[392607945,1761742202427,-244.08025378,0.00014797,2]
[392607946,1761742204362,-28.91974622,0.00014797,2]
[392607947,1761742204387,-257.89411574,0.00014797,2]
[392607948,1761742206761,-42.10588426,0.00014797,2]
[392607949,1761742206799,-228.23709076,0.00014797,2]
[392607950,1761742220291,1000.0,0.00014282,2]
[392607951,1761742221220,-191.08,0.00014722,2]
[392607952,1761742225698,-79.262975,0.00014722,2]
[392607953,1761742225721,-145.41503926,0.00014797,2]
[392607954,1761742228765,-164.56674478,0.00014797,2]
[392607955,1761742230316,-338.76309633,0.00014797,2]
[392607990,1761742231833,-323.01802887,0.00014797,2]
[392607991,1761742231843,-26.64559675,0.00014798,2]
[392607992,1761742231853,-500.0,0.00014798,2]
[392607993,1761742231862,-500.0,0.00014798,2]
[392607994,1761742231872,-500.0,0.00014798,2]
[392607995,1761742231883,-500.0,0.00014798,2]
[392607996,1761742231894,-500.0,0.00014798,2]
[392607998,1761742231904,-500.0,0.00014798,2]
[392608000,1761742231914,-500.0,0.00014798,2]
[392608002,1761742231924,-500.0,0.00014798,2]
[392608003,1761742231934,-500.0,0.00014798,2]
[392608004,1761742231943,-500.0,0.00014798,2]
[392608005,1761742231961,-500.0,0.00014798,2]
[392608006,1761742231976,-475.39391257,0.00014798,2]
[392608007,1761742231990,-18108.10237892,0.00014799,2]
[392608011,1761742237676,-1050.30886789,0.00014799,2]
[392608012,1761742237687,-4613.50733024,0.00014799,2]
[392608013,1761742237698,-1951.52359462,0.00014799,2]
[392608027,1761742240363,-1.6e-07,0.00014799,2]
[392608028,1761742240379,-1001.06925733,0.00014799,2]
[392608035,1761742242537,-300.43674762,0.00014799,2]
[392608036,1761742242548,-2868.12216171,0.00014799,2]
[392608044,1761742245557,-935.18039698,0.00014799,2]
[392608045,1761742245793,-664.1284563,0.00014799,2]
[392608049,1761742255920,-50000.0,0.00014799,2]
[392608050,1761742275583,10001.38,0.00014447,2]
[392608051,1761742299457,-223.462897,0.00014724,2]
[392608052,1761742299479,-5985.97719904,0.00014799,2]
[392608053,1761742299502,-333.43249046,0.00014799,2]
[392608054,1761742299525,-333.43249046,0.0001485,2]
[392608055,1761742299547,-314.65945662,0.00014899,2]
[392608056,1761742299568,-591.0,0.00014899,2]
[392608057,1761742299591,-300.99596667,0.000149,2]
[392608058,1761742299613,-837.40633027,0.000149,2]
[392608059,1761742299637,-3931.09107859,0.000149,2]
[392608060,1761742299661,-4460.20884456,0.000149,2]
[392608061,1761742299686,-333.43249046,0.000149,2]
[392608062,1761742299708,-488.89783,0.0001497,2]
[392608063,1761742299729,-500.0,0.00014973,2]
[392608064,1761742299752,-500.0,0.00014973,2]
[392608065,1761742299774,-500.0,0.00014973,2]
[392608066,1761742299796,-539.36326641,0.00014973,2]
[392608067,1761742299818,-500.0,0.00014973,2]
[392608068,1761742299984,-500.0,0.00014973,2]
[392608069,1761742300021,-243.00332962,0.0001499,2]
[392608070,1761742300044,-575.89823329,0.0001499,2]
[392608071,1761742300067,-299.48628289,0.0001499,2]
[392608072,1761742300093,-313.13464191,0.00014991,2]
[392608073,1761742300115,-201.00939533,0.00014991,2]
[392608074,1761742300139,-500.0,0.00014991,2]
[392608075,1761742300162,-500.0,0.00014991,2]
[392608076,1761742300186,-500.0,0.00014991,2]
[392608077,1761742300210,-575.20566972,0.00014991,2]
[392608078,1761742300233,-250.0,0.00014991,2]
[392608079,1761742300256,-250.0,0.00014991,2]
[392608080,1761742300281,-500.0,0.00014991,2]
[392608081,1761742300304,-500.0,0.00014991,2]
[392608082,1761742300326,-191.45050977,0.00014991,2]
[392608083,1761742300350,-250.0,0.00014991,2]
[392608084,1761742300375,-1642.894342,0.00014995,2]
[392608085,1761742300397,-1000.0,0.00014998,2]
[392608086,1761742300418,-600.11753681,0.00014998,2]
[392608087,1761742300441,-873.18,0.00014998,2]
[392608088,1761742300464,-498.645,0.00014998,2]
[392608089,1761742300485,-12492.09146571,0.00014999,2]
[392608090,1761742300508,-500.0,0.00014999,2]
[392608091,1761742300532,-500.0,0.00014999,2]
[392608092,1761742300554,-500.0,0.00014999,2]
[392608093,1761742300578,-500.0,0.00014999,2]
[392608094,1761742300600,-500.0,0.00014999,2]
[392608095,1761742300622,-500.0,0.00014999,2]
[392608096,1761742300645,-104656.03891025,0.00015,2]
[392608097,1761742300666,-35243.09988884,0.00015,2]
[392608098,1761742300689,-147395.38445332,0.00015,2]
[392608099,1761742327597,-614.0,0.00015,2]
[392608101,1761742360699,-170.10233074,0.00014999,2]
[392608102,1761742360719,-273.28139907,0.00014999,2]
[392608103,1761742360743,-507.78906991,0.00014999,2]
[392608104,1761742360765,-183.05003139,0.00014999,2]
[392608105,1761742360789,-500.0,0.00014999,2]
[392608106,1761742360813,-272.77716889,0.00014999,2]
[392608107,1761742391379,150.0,0.00016743,120]
[392608108,1761742393552,-195.0,0.00014999,2]
[392608109,1761742393631,-32.22283111,0.00014999,2]
[392608110,1761742393658,-162.77716889,0.00014999,2]
[392608113,1761742526080,-325.89900166,0.000149,2]
[392608114,1761742526103,-300.0,0.00014996,2]
[392608115,1761742526128,-300.0,0.00014996,2]
[392608116,1761742526150,-126.10099834,0.00014996,2]
[392608117,1761742538305,500.0,0.00030137,120]
[392608118,1761742538814,500.0,0.00030411,120]
[392608119,1761742539307,500.0,0.00030685,120]
[392608120,1761742539825,500.0,0.00030959,120]
[392608121,1761742568380,151.0,0.0001988,7]
[392608124,1761742691439,5061.25870238,0.00014,2]
[392608130,1761742846585,232.22,0.00013699,2]
[392608133,1761742898805,456.83923007,0.0002,3]
[392608138,1761743231558,700.0,0.000199,7]
[392608155,1761743431725,-150.0,0.00014689,2]
[392608156,1761743431735,-216.9840125,0.00014725,2]
[392608157,1761743431744,-284.2851,0.000148,2]
[392608158,1761743431754,-300.0,0.00014899,2]
[392608159,1761743431763,-1200.0,0.00014899,2]
[392608160,1761743431773,-170.72714856,0.000149,2]
[392608161,1761743431783,-285.1616264,0.000149,2]
[392608162,1761743431792,-5545.73079402,0.000149,2]
[392608163,1761743431801,-1964.8945867,0.00014931,2]
[392608164,1761743431810,-151.0,0.00014991,2]
[392608165,1761743431820,-151.0,0.00014991,2]
[392608166,1761743431829,-151.0,0.00014991,2]
[392608167,1761743431839,-151.0,0.00014991,2]
[392608168,1761743431848,-151.0,0.00014991,2]
[392608169,1761743431858,-151.0,0.00014991,2]
[392608170,1761743431867,-151.0,0.00014991,2]
[392608177,1761743431877,-151.0,0.00014991,2]
[392608180,1761743432079,-151.0,0.00014991,2]
[392608182,1761743432090,-151.0,0.00014991,2]
[392608184,1761743432099,-151.0,0.00014991,2]
[392608186,1761743432108,-151.0,0.00014991,2]
[392608188,1761743432123,-151.0,0.00014991,2]
[392608190,1761743432135,-151.0,0.00014991,2]
[392608191,1761743432144,-151.0,0.00014991,2]
[392608194,1761743432155,-151.0,0.00014991,2]
[392608196,1761743432164,-151.0,0.00014991,2]
[392608197,1761743432172,-169.0,0.00014991,2]
[392608198,1761743432182,-914.89,0.00014991,2]
[392608199,1761743432191,-500.0,0.00014992,2]
[392608200,1761743432201,-565.37862135,0.00014992,2]
[392608201,1761743432210,-415.61202071,0.00014992,2]
[392608202,1761743432220,-500.0,0.00014992,2]
[392608203,1761743432230,-500.0,0.00014992,2]
[392608204,1761743432240,-500.0,0.00014992,2]
[392608205,1761743432249,-500.0,0.00014992,2]
[392608206,1761743432258,-500.0,0.00014992,2]
[392608207,1761743432268,-500.0,0.00014992,2]
[392608208,1761743432278,-500.0,0.00014992,2]
[392608209,1761743432288,-500.0,0.00014992,2]
[392608210,1761743432299,-500.0,0.00014992,2]
[392608211,1761743432308,-500.0,0.00014992,2]
[392608212,1761743432317,-500.0,0.00014992,2]
[392608213,1761743432326,-500.0,0.00014992,2]
[392608214,1761743432336,-500.0,0.00014992,2]
[392608215,1761743432345,-500.0,0.00014992,2]
[392608216,1761743432355,-500.0,0.00014992,2]
[392608217,1761743432365,-500.0,0.00014992,2]
[392608218,1761743432374,-329.18996168,0.00014992,2]
[392608219,1761743432384,-500.0,0.00014992,2]
[392608220,1761743432393,-500.0,0.00014992,2]
[392608221,1761743432402,-500.0,0.00014992,2]
[392608222,1761743432411,-500.0,0.00014992,2]
[392608223,1761743432421,-500.0,0.00014992,2]
[392608224,1761743432430,-500.0,0.00014992,2]
[392608225,1761743432439,-500.0,0.00014992,2]
[392608226,1761743432448,-500.0,0.00014992,2]
[392608227,1761743432458,-500.0,0.00014992,2]
[392608228,1761743432469,-500.0,0.00014992,2]
[392608229,1761743432478,-500.0,0.00014992,2]
[392608230,1761743432487,-500.0,0.00014992,2]
[392608231,1761743432496,-484.80823273,0.00014992,2]
[392608232,1761743432508,-15.19176727,0.00014992,2]
[392608233,1761743432517,-500.0,0.00014992,2]
[392608234,1761743432526,-500.0,0.00014992,2]
[392608235,1761743432538,-500.0,0.00014992,2]
[392608236,1761743432548,-500.0,0.00014992,2]
[392608237,1761743432557,-500.0,0.00014992,2]
[392608238,1761743432566,-500.0,0.00014992,2]
[392608239,1761743432575,-500.0,0.00014992,2]
[392608240,1761743432584,-500.0,0.00014992,2]
[392608241,1761743432594,-500.0,0.00014992,2]
[392608242,1761743432603,-500.0,0.00014992,2]
[392608243,1761743432613,-500.0,0.00014992,2]
[392608244,1761743432622,-500.0,0.00014992,2]
[392608245,1761743432632,-500.0,0.00014992,2]
[392608246,1761743432641,-500.0,0.00014992,2]
[392608247,1761743432650,-500.0,0.00014992,2]
[392608248,1761743432659,-500.0,0.00014992,2]
[392608249,1761743432668,-500.0,0.00014992,2]
[392608250,1761743432678,-500.0,0.00014992,2]
[392608251,1761743432687,-500.0,0.00014992,2]
[392608252,1761743432697,-500.0,0.00014992,2]
[392608253,1761743432707,-500.0,0.00014992,2]
[392608254,1761743432716,-500.0,0.00014992,2]
[392608255,1761743432725,-500.0,0.00014992,2]
[392608256,1761743432734,-500.0,0.00014992,2]
[392608257,1761743432744,-500.0,0.00014992,2]
[392608258,1761743432754,-500.0,0.00014992,2]
[392608259,1761743432763,-500.0,0.00014992,2]
[392608260,1761743432772,-500.0,0.00014992,2]
[392608261,1761743432782,-500.0,0.00014992,2]
[392608262,1761743432801,-500.0,0.00014992,2]
[392608263,1761743432811,-500.0,0.00014992,2]
[392608264,1761743432821,-500.0,0.00014992,2]
[392608265,1761743432831,-500.0,0.00014992,2]
[392608266,1761743432841,-500.0,0.00014992,2]
[392608267,1761743432851,-500.0,0.00014992,2]
[392608268,1761743432860,-500.0,0.00014992,2]
[392608269,1761743432869,-500.0,0.00014992,2]
[392608270,1761743432879,-500.0,0.00014992,2]
[392608271,1761743432888,-500.0,0.00014992,2]
[392608272,1761743432898,-500.0,0.00014992,2]
[392608273,1761743432907,-500.0,0.00014992,2]
[392608274,1761743432916,-500.0,0.00014992,2]
[392608275,1761743432926,-500.0,0.00014992,2]
[392608276,1761743432935,-250.0,0.00014992,2]
[392608277,1761743432944,-500.0,0.00014992,2]
[392608278,1761743432953,-500.0,0.00014992,2]
[392608279,1761743432965,-155.0,0.00014993,2]
[392608280,1761743432974,-295.33139851,0.00014996,2]
[392608281,1761743432983,-150.0,0.00014996,2]
[392608282,1761743432992,-150.0,0.00014996,2]
[392608283,1761743433001,-150.0,0.00014996,2]
[392608284,1761743433011,-150.63958813,0.00014996,2]
[392608285,1761743433020,-150.0,0.00014996,2]
[392608286,1761743433030,-157.9835559,0.00014996,2]
[392608287,1761743433040,-150.0,0.00014996,2]
[392608288,1761743433049,-150.0,0.00014996,2]
[392608289,1761743433058,-150.0,0.00014996,2]
[392608290,1761743433067,-150.0,0.00014996,2]
[392608291,1761743433076,-150.0,0.00014996,2]
[392608292,1761743433086,-150.0,0.00014996,2]
[392608293,1761743433095,-190.95959418,0.00014996,2]
[392608294,1761743433107,-60.87652442,0.00014996,2]
[392608295,1761743433116,-150.0,0.00014996,2]
[392608296,1761743433125,-150.0,0.00014996,2]
[392608297,1761743433135,-150.0,0.00014996,2]
[392608298,1761743433145,-475.05165506,0.00014997,2]
[392608299,1761743433156,-1000.0,0.00014997,2]
[392608300,1761743433168,-1629.57329821,0.00014997,2]
[392608301,1761743433275,-654.48917961,0.00014997,2]
[392608302,1761743433287,-699.1611072,0.00014997,2]
[392608303,1761743433299,-1505.82637114,0.00014997,2]
[392608304,1761743437606,-3530.8,0.00014997,2]
[392608305,1761743437659,-355.43975575,0.00014997,2]
[392608306,1761743437769,-951.1887893,0.00014997,2]
[392608307,1761743437850,-726.66484163,0.00014997,2]
[392608308,1761743437860,-138.85543397,0.00014998,2]
[392608309,1761743437871,-448.00837922,0.00014998,2]
[392608310,1761743437881,-170.10233074,0.00014998,2]
[392608311,1761743437890,-273.28139907,0.00014998,2]
[392608312,1761743437900,-13764.31822442,0.00014999,2]
[392608313,1761743437911,-640.87308337,0.00014999,2]
[392608323,1761743440037,-608.93720028,0.000149,2]
[392608399,1761743442948,-1952.44966868,0.000149,2]
[392608406,1761743445715,-3370.92706785,0.000149,2]
[392608407,1761743445724,-2303.07293215,0.00014999,2]
[392608408,1761743446196,-1871.04705396,0.00014999,2]
[392608409,1761743446224,-1532.84775385,0.00014999,2]
[392608410,1761743446236,-995.4844892,0.00014999,2]
[392608411,1761743446281,-303.20584,0.00014999,2]
[392608415,1761743544799,-498.60150792,0.00014751,2]
[392608416,1761743544822,-357.52436,0.0001485,2]
[392608417,1761743544847,-151.0,0.00014991,2]
[392608418,1761743544868,-151.0,0.00014991,2]
[392608419,1761743544891,-151.0,0.00014991,2]
[392608420,1761743544915,-151.0,0.00014991,2]
[392608421,1761743544939,-151.0,0.00014991,2]
[392608422,1761743544963,-151.0,0.00014991,2]
[392608423,1761743544984,-151.0,0.00014991,2]
[392608424,1761743545005,-151.0,0.00014991,2]
[392608425,1761743545029,-151.0,0.00014991,2]
[392608426,1761743545050,-170.13932674,0.00014991,2]
[392608427,1761743545071,-151.0,0.00014991,2]
[392608428,1761743545092,-151.0,0.00014991,2]
[392608429,1761743545113,-151.0,0.00014991,2]
[392608430,1761743545134,-151.0,0.00014991,2]
[392608431,1761743545157,-151.0,0.00014991,2]
[392608432,1761743545180,-151.0,0.00014991,2]
[392608433,1761743545202,-151.0,0.00014991,2]
[392608434,1761743545225,-151.0,0.00014991,2]
[392608435,1761743545247,-151.0,0.00014991,2]
[392608436,1761743545269,-151.0,0.00014991,2]
[392608437,1761743545290,-151.0,0.00014991,2]
[392608438,1761743545321,-151.0,0.00014991,2]
[392608439,1761743545346,-151.0,0.00014991,2]
[392608440,1761743545368,-151.0,0.00014991,2]
[392608441,1761743545393,-500.0,0.00014991,2]
[392608442,1761743545417,-500.0,0.00014991,2]
[392608443,1761743545440,-500.0,0.00014991,2]
[392608444,1761743545464,-500.0,0.00014991,2]
[392608445,1761743545488,-500.0,0.00014991,2]
[392608446,1761743545513,-500.0,0.00014991,2]
[392608447,1761743545538,-500.0,0.00014991,2]
[392608448,1761743545561,-500.0,0.00014991,2]
[392608449,1761743545588,-409.05976627,0.00014991,2]
[392608450,1761743545613,-500.0,0.00014991,2]
[392608451,1761743545637,-500.0,0.00014991,2]
[392608452,1761743545661,-500.0,0.00014991,2]
[392608453,1761743545688,-500.0,0.00014991,2]
[392608454,1761743545713,-212.1177518,0.00014991,2]
[392608455,1761743545736,-202.40640861,0.00014996,2]
[392608456,1761743545764,-150.0,0.00014996,2]
[392608457,1761743545786,-150.0,0.00014996,2]
[392608458,1761743545808,-150.0,0.00014996,2]
[392608459,1761743545830,-4471.15087866,0.00014999,2]
[392608460,1761743577750,-249.5164231,0.000149,2]
[392608461,1761743577773,-277.35679052,0.00014991,2]
[392608462,1761743577799,-500.0,0.00014998,2]
[392608463,1761743577836,-500.0,0.00014998,2]
[392608464,1761743577862,-1547.12678638,0.00014999,2]
[392608466,1761743611376,150.0,0.00030137,120]
[392608467,1761743611544,200.0,0.00030137,120]
[392608468,1761743760300,300.0,0.00027397,120]
[392608469,1761743778145,-250.69901782,0.00014564,2]
[392608470,1761743830113,250.692251,0.00014491,2]
[392608471,1761743928027,-40.54098218,0.00014564,2]
[392608472,1761743928047,-200.0,0.00014564,2]
[392608473,1761743928067,-77.63137098,0.00014664,2]
[392608474,1761743972965,-292.29684328,0.0001459,2]
[392608475,1761744049454,-318.172354,0.00014532,2]